bitfinex/quotes_BTCUSD_20250320
["timestamp","ask_amount","ask_price","bid_price","bid_amount"]
[1742482287223,0.15516112,86305.0,86292.0,0.23177]
[1742482287445,0.15516112,86305.0,86293.0,0.231767]
[1742482287673,0.15516112,86305.0,86289.0,0.231776]
[1742482288076,0.011587,86302.0,86277.0,0.0234127]
[1742482288302,0.16674712,86305.0,86284.0,0.231791]
[1742482288473,0.15516112,86305.0,86304.0,0.002]
[1742482288693,0.15516112,86305.0,86304.0,0.003]
[1742482288898,0.15516112,86305.0,86304.0,0.001]
[1742482289059,0.38689712,86305.0,86288.0,0.231781]
[1742482289264,0.55188,86304.0,86291.0,0.0021699]
[1742482289519,0.55188,86304.0,86291.0,0.0001699]
[1742482289822,0.243359,86292.0,86291.0,0.0001699]
[1742482290048,0.13664,86292.0,86291.0,0.0001699]
[1742482290225,0.368411,86292.0,86291.0,0.0001699]
[1742482290432,0.13664,86292.0,86291.0,0.0021699]
[1742482290634,0.15482458,86292.0,86291.0,0.0021699]
[1742482290835,0.13664,86292.0,86291.0,0.0021699]
[1742482292990,0.13664,86292.0,86291.0,0.0001699]
[1742482293223,0.13664,86292.0,86291.0,0.0041699]
[1742482293555,0.55188,86304.0,86295.0,0.231761]
[1742482293773,0.13664,86303.0,86291.0,0.0021699]
[1742482294041,0.0003398,86301.0,86294.0,0.231765]
[1742482294396,0.0003398,86301.0,86293.0,0.231767]
[1742482294808,0.0003398,86301.0,86294.0,0.231765]
[1742482295010,0.01818273,86300.0,86293.0,0.231767]
[1742482295216,0.01818273,86300.0,86291.0,0.0021699]
[1742482295746,0.01818273,86300.0,86295.0,0.231762]
[1742482296106,0.01818273,86300.0,86296.0,0.23176]
[1742482296774,0.01818273,86300.0,86298.0,0.231753]
[1742482296917,0.13664,86299.0,86298.0,0.231753]
[1742482297731,0.13664,86299.0,86296.0,0.001]
[1742482297933,0.13664,86299.0,86296.0,0.232759]
[1742482298159,0.13664,86299.0,86291.0,0.0001699]
[1742482298390,0.13664,86299.0,86293.0,0.231766]
[1742482298659,0.13664,86298.0,86294.0,0.231765]
[1742482298892,0.13664,86298.0,86291.0,0.2319419]
[1742482299227,0.13664,86298.0,86292.0,0.23177]
[1742482299920,0.13664,86298.0,86291.0,0.0001699]
[1742482300303,0.13664,86298.0,86291.0,0.0021699]
[1742482300475,0.13664,86298.0,86291.0,0.0001699]
[1742482300778,0.011588,86292.0,86291.0,0.0001699]
[1742482300977,0.543359,86292.0,86291.0,0.0001699]
[1742482301176,0.55789985,86292.0,86291.0,0.0001699]
[1742482301589,0.55789985,86292.0,86291.0,0.0021699]
[1742482303207,0.55789985,86292.0,86291.0,0.0011699]
[1742482303786,0.55789985,86292.0,86291.0,0.0001699]
[1742482304046,0.60183392,86292.0,86291.0,0.0001699]
[1742482304256,0.60383392,86292.0,86291.0,0.0001699]
[1742482304451,0.55395641,86292.0,86291.0,0.0001699]
[1742482304841,0.70214441,86292.0,86291.0,0.0001699]
[1742482305463,0.15878541,86292.0,86291.0,0.0001699]
[1742482306335,0.15912521,86292.0,86291.0,0.0001699]
[1742482306507,0.15512521,86292.0,86291.0,0.0001699]
[1742482306926,0.15712521,86292.0,86291.0,0.0001699]
[1742482307347,0.15512521,86292.0,86291.0,0.0001699]
[1742482307549,0.15512521,86292.0,86291.0,0.0011699]
[1742482307961,0.15512521,86292.0,86291.0,0.0001699]
[1742482308317,0.15512521,86292.0,86291.0,0.0011699]
[1742482308662,0.15512521,86292.0,86291.0,0.2329429]
[1742482308843,0.15512521,86292.0,86291.0,0.0011699]
[1742482309816,0.15512521,86292.0,86291.0,0.2329429]
[1742482310729,0.15512521,86292.0,86291.0,0.2349429]
[1742482315503,0.01852521,86292.0,86291.0,0.3235309]
[1742482315707,0.0003398,86292.0,86291.0,0.3235309]
[1742482316745,0.0003398,86292.0,86291.0,0.3205309]
[1742482317148,0.0003398,86292.0,86291.0,0.3265309]
[1742482317905,0.0003398,86292.0,86291.0,0.2379429]
[1742482318108,0.0003398,86292.0,86291.0,0.0031699]
[1742482318259,0.0003398,86292.0,86291.0,0.2349429]
[1742482318460,0.0003398,86292.0,86291.0,0.2359429]
[1742482318678,0.01852243,86292.0,86291.0,0.2319429]
[1742482318883,0.01852243,86292.0,86291.0,0.2359429]
[1742482319234,0.01852243,86292.0,86291.0,0.2435309]
[1742482319676,0.01852243,86292.0,86291.0,0.2475309]
[1742482319891,0.15508243,86292.0,86291.0,0.2475309]
[1742482320118,0.15508243,86292.0,86291.0,0.2515309]
[1742482320553,0.01852243,86292.0,86291.0,0.2515309]
[1742482321890,0.0003398,86292.0,86291.0,0.3300309]
[1742482322295,0.0003398,86292.0,86291.0,0.74960593]
[1742482322714,0.0003398,86292.0,86291.0,0.6260309]
[1742482322922,0.0003398,86292.0,86291.0,0.2359429]
[1742482323117,0.1368998,86292.0,86291.0,0.0101699]
[1742482323459,0.1368998,86292.0,86291.0,0.0061699]
[1742482323460,0.14826505,86292.0,86291.0,0.0061699]
[1742482324070,0.14826505,86292.0,86291.0,0.2439429]
[1742482324267,0.1368998,86292.0,86291.0,0.2379429]
[1742482324672,0.1368998,86292.0,86291.0,0.2515309]
[1742482325450,0.1368998,86292.0,86291.0,0.2455309]
[1742482325618,0.1368998,86292.0,86291.0,0.2515309]
[1742482325971,0.1368998,86292.0,86291.0,0.2339429]
[1742482326181,0.1550808,86292.0,86291.0,0.0021699]
[1742482326583,0.3984398,86292.0,86291.0,0.0041699]
[1742482326785,0.3984398,86292.0,86291.0,0.0081699]
[1742482326786,0.1550808,86292.0,86291.0,0.0081699]
[1742482327229,0.1550808,86292.0,86291.0,0.0041699]
[1742482327599,0.1550808,86292.0,86291.0,0.0061699]
[1742482327825,0.1550808,86292.0,86291.0,0.0001699]
[1742482328219,0.1550808,86292.0,86291.0,0.0031699]
[1742482328571,0.1550808,86292.0,86291.0,0.0011699]
[1742482328908,0.1550808,86292.0,86291.0,0.0021699]
[1742482329739,0.1550808,86292.0,86291.0,0.2339429]
[1742482329943,0.1550808,86292.0,86291.0,0.0021699]
[1742482333725,0.0003398,86292.0,86291.0,0.2339429]
[1742482333892,0.1368998,86292.0,86291.0,0.2455309]
[1742482334104,0.0003398,86292.0,86291.0,0.55734698]
[1742482334300,0.0003398,86292.0,86291.0,0.63434698]
[1742482334685,0.0003398,86292.0,86291.0,0.63334698]
[1742482335108,0.0003398,86292.0,86291.0,0.63634698]
[1742482335553,8e-07,86292.0,86291.0,0.75292201]
[1742482335984,8e-07,86292.0,86291.0,0.75792201]
[1742482336186,8e-07,86292.0,86291.0,0.75692201]
[1742482336416,8e-07,86292.0,86291.0,0.7806341]
[1742482336565,8e-07,86292.0,86291.0,0.7846341]
[1742482336941,8e-07,86292.0,86291.0,0.79517495]
[1742482337554,8e-07,86292.0,86291.0,0.33765499]
[1742482337791,8e-07,86292.0,86291.0,0.27824299]
[1742482337961,0.0181803,86292.0,86291.0,0.2846476]
[1742482338168,0.0181803,86292.0,86291.0,0.2786476]
[1742482338371,0.0181803,86292.0,86291.0,0.2846476]
[1742482338705,0.0181803,86292.0,86291.0,0.27324299]
[1742482339206,0.0181803,86292.0,86291.0,0.26724299]
[1742482339346,0.0181803,86292.0,86291.0,0.70422147]
[1742482339553,0.0181803,86292.0,86291.0,0.71022147]
[1742482339754,0.0181803,86292.0,86291.0,0.70422147]
[1742482340096,0.0181803,86292.0,86291.0,0.71022147]
[1742482340330,3e-07,86292.0,86291.0,0.72976232]
[1742482340534,3e-07,86292.0,86291.0,0.80726232]
[1742482340735,0.0003398,86301.0,86300.0,0.243336]
[1742482340935,0.0003398,86301.0,86300.0,0.36291103]
[1742482341907,0.0003398,86301.0,86300.0,0.243336]
[1742482343218,0.1368598,86301.0,86300.0,0.231749]
[1742482343426,0.1368598,86301.0,86300.0,0.236749]
[1742482343871,0.1368598,86301.0,86300.0,0.005]
[1742482344027,0.1368598,86301.0,86300.0,0.01]
[1742482345007,0.47927449,86301.0,86300.0,0.01]
[1742482345241,0.77927449,86301.0,86300.0,0.005]
[1742482345447,0.78084483,86301.0,86300.0,0.008]
[1742482345669,0.292759,86292.0,86291.0,0.0001699]
[1742482346348,0.67495296,86292.0,86291.0,0.0001699]
[1742482346505,0.70767884,86292.0,86291.0,0.0001699]
[1742482347528,1.14127884,86292.0,86291.0,0.0001699]
[1742482347732,1.50647984,86292.0,86291.0,0.0001699]
[1742482348672,1.32445484,86292.0,86291.0,0.0001699]
[1742482348878,0.243405,86276.0,86252.0,0.231877]
[1742482349075,0.231831,86270.0,86258.0,0.00012477]
[1742482349498,0.00161317,86269.0,86258.0,0.00012477]
[1742482349715,0.01818911,86268.0,86258.0,0.00012477]
[1742482350122,0.311592,86259.0,86258.0,0.00012477]
[1742482350330,0.3,86259.0,86258.0,0.00012477]
[1742482350768,0.31320181,86259.0,86258.0,0.00012477]
[1742482350970,0.30160981,86259.0,86258.0,0.00012477]
[1742482351172,0.31320181,86259.0,86258.0,0.00112477]
[1742482351427,0.44972181,86259.0,86258.0,0.00112477]
[1742482351612,0.55800085,86256.0,86255.0,0.0001695]
[1742482351912,0.96818486,86256.0,86255.0,0.0001695]
[1742482352117,1.04628486,86256.0,86255.0,0.0001695]
[1742482352316,1.04628486,86256.0,86231.0,0.0001695]
[1742482352317,0.543528,86232.0,86231.0,0.0001695]
[1742482352447,1.74409458,86232.0,86231.0,0.00029437]
[1742482352647,1.79346517,86232.0,86231.0,0.00029437]
[1742482353266,1.79346517,86232.0,86204.0,0.0001697]
[1742482353267,0.543556,86222.0,86204.0,0.0001697]
[1742482353465,0.55613988,86222.0,86204.0,0.0001697]
[1742482353834,0.57433954,86222.0,86204.0,0.0001697]
[1742482354210,0.58888039,86222.0,86204.0,0.0001697]
[1742482354416,0.620005,86205.0,86204.0,0.0001697]
[1742482354646,1.79224767,86205.0,86204.0,0.0001697]
[1742482354771,1.77770682,86205.0,86204.0,0.0001697]
[1742482354972,1.77913645,86205.0,86204.0,0.0001697]
[1742482355294,1.80199195,86205.0,86204.0,0.0001697]
[1742482355834,1.8282547,86205.0,86204.0,0.0005862]
[1742482356753,1.85114822,86205.0,86204.0,0.0005862]
[1742482357144,0.55815385,86202.0,86201.0,1e-08]
[1742482357458,0.5708766,86202.0,86201.0,1e-08]
[1742482358044,0.543642,86192.0,86191.0,0.001]
[1742482358249,0.7082795,86192.0,86191.0,0.001]
[1742482358645,0.46169865,86192.0,86191.0,0.001]
[1742482358842,0.47990486,86192.0,86191.0,0.001]
[1742482359642,0.49444571,86192.0,86191.0,0.001]
[1742482360465,0.49544571,86192.0,86191.0,0.001]
[1742482360659,0.49644571,86192.0,86191.0,0.001]
[1742482361028,0.90704571,86192.0,86191.0,0.001]
[1742482361526,0.91204571,86192.0,86191.0,0.001]
[1742482361955,0.90704571,86192.0,86191.0,0.001]
[1742482362346,1.0436905,86192.0,86191.0,0.001]
[1742482362756,0.8938395,86192.0,86191.0,0.001]
[1742482363219,0.74269865,86192.0,86191.0,0.001]
[1742482363447,0.87929865,86192.0,86191.0,0.001]
[1742482363649,0.87529865,86192.0,86191.0,0.001]
[1742482363825,0.87429865,86192.0,86191.0,0.001]
[1742482364046,0.87433865,86192.0,86191.0,0.001]
[1742482364626,0.87633865,86192.0,86191.0,0.001]
[1742482364853,0.87033865,86192.0,86191.0,0.001]
[1742482365050,0.8878795,86192.0,86191.0,0.001]
[1742482365207,0.8898795,86192.0,86191.0,0.001]
[1742482365403,0.89354614,86192.0,86191.0,0.001]
[1742482365604,0.74530414,86192.0,86191.0,0.001]
[1742482365826,0.88190414,86192.0,86191.0,0.001]
[1742482366056,0.89350614,86192.0,86191.0,0.001]
[1742482366257,0.89350614,86192.0,86191.0,0.0011696]
[1742482366453,0.75690614,86192.0,86191.0,0.0011696]
[1742482366779,0.87994414,86192.0,86191.0,0.0011696]
[1742482366982,0.17034414,86192.0,86191.0,0.0011696]
[1742482367393,0.17334414,86192.0,86191.0,0.0011696]
[1742482367800,0.17034414,86192.0,86191.0,0.0011696]
[1742482369009,0.16834414,86192.0,86191.0,0.0011696]
[1742482369847,0.03170414,86192.0,86191.0,0.0011696]
[1742482369983,0.16834414,86192.0,86191.0,0.2332116]
[1742482370180,0.15013665,86192.0,86191.0,0.2332116]
[1742482370390,0.15013665,86192.0,86191.0,0.0011696]
[1742482371409,0.13664,86192.0,86191.0,0.0011696]
[1742482371613,0.5638419,86205.0,86194.0,0.232033]
[1742482371814,0.14959826,86204.0,86194.0,0.232033]
[1742482372225,0.14959826,86204.0,86196.0,0.232029]
[1742482372439,0.14959826,86204.0,86201.0,0.232015]
[1742482372641,0.14959826,86204.0,86199.0,0.232019]
[1742482372865,0.01295826,86204.0,86203.0,0.23201]
[1742482373090,0.14959826,86204.0,86201.0,0.232013]
[1742482373297,0.14959826,86204.0,86199.0,0.23202]
[1742482373495,0.1678015,86204.0,86199.0,0.23202]
[1742482373693,0.1678015,86204.0,86195.0,0.23203]
[1742482373992,0.1678015,86204.0,86194.0,0.232034]
[1742482374195,0.1678015,86204.0,86203.0,0.002]
[1742482374510,0.1678015,86204.0,86194.0,0.232034]
[1742482374704,0.1678015,86204.0,86195.0,0.001]
[1742482375084,0.1678015,86204.0,86195.0,0.232032]
[1742482375310,0.1678015,86204.0,86195.0,0.23203]
[1742482375513,0.1678015,86204.0,86191.0,0.0011696]
[1742482375733,0.2521108,86201.0,86191.0,0.0011696]
[1742482375937,0.01319378,86196.0,86191.0,0.0011696]
[1742482376131,0.243642,86192.0,86191.0,0.0011696]
[1742482376478,0.39360404,86192.0,86191.0,0.0011696]
[1742482376596,0.41181043,86192.0,86191.0,0.0011696]
[1742482376795,0.42062868,86192.0,86191.0,0.0011696]
[1742482376998,0.72062868,86192.0,86191.0,0.0011696]
[1742482378267,0.72362868,86192.0,86191.0,0.0011696]
[1742482379615,0.72462868,86192.0,86191.0,0.0011696]
[1742482380018,0.72662868,86192.0,86191.0,0.0011696]
[1742482380263,0.72262868,86192.0,86191.0,0.0011696]
[1742482380421,0.72462868,86192.0,86191.0,0.0011696]
[1742482380652,0.72262868,86192.0,86191.0,0.0011696]
[1742482380988,0.72362868,86192.0,86191.0,0.0011696]
[1742482381190,0.03456843,86192.0,86191.0,0.0011696]
[1742482381413,0.17516843,86192.0,86191.0,0.0011696]
[1742482381555,0.15696204,86192.0,86191.0,0.0011696]
[1742482381985,0.38900204,86192.0,86191.0,0.0011696]
[1742482382188,0.40060404,86192.0,86191.0,0.0011696]
[1742482382391,0.70060404,86192.0,86191.0,0.0011696]
[1742482382591,0.69760404,86192.0,86191.0,0.0011696]
[1742482383033,0.69960404,86192.0,86191.0,0.0011696]
[1742482383233,0.69360404,86192.0,86191.0,0.0011696]
[1742482383697,0.69960404,86192.0,86191.0,0.0011696]
[1742482383892,0.69660404,86192.0,86191.0,0.0011696]
[1742482384279,0.70533332,86192.0,86191.0,0.0011696]
[1742482384456,0.15296204,86192.0,86191.0,0.0011696]
[1742482384658,0.18377041,86192.0,86191.0,0.0011696]
[1742482384818,0.41581041,86192.0,86191.0,0.0011696]
[1742482385016,0.4203434,86192.0,86191.0,0.0011696]
[1742482385562,0.4253434,86192.0,86191.0,0.0011696]
[1742482386011,0.7253434,86192.0,86191.0,0.0011696]
[1742482386284,0.7293434,86192.0,86191.0,0.0011696]
[1742482386457,1.14848425,86192.0,86191.0,0.0011696]
[1742482386662,1.23068425,86192.0,86191.0,0.0011696]
[1742482387013,1.22668425,86192.0,86191.0,0.0011696]
[1742482387187,1.22768425,86192.0,86191.0,0.0011696]
[1742482387532,1.22768425,86192.0,86168.0,0.0001695]
[1742482387533,0.243707,86169.0,86168.0,0.0001695]
[1742482387729,0.39535205,86169.0,86168.0,0.0002944]
[1742482387953,0.15164505,86169.0,86168.0,0.0002944]
[1742482389185,0.16337084,86169.0,86168.0,0.0002944]
[1742482391532,0.40707784,86169.0,86168.0,0.0002944]
[1742482392102,0.16337084,86169.0,86168.0,0.0002944]
[1742482393104,0.14832579,86169.0,86168.0,0.2323984]
[1742482393302,0.1366,86169.0,86168.0,0.3085984]
[1742482393631,0.1366,86169.0,86168.0,0.0764944]
[1742482394038,0.15164505,86169.0,86168.0,0.0002944]
[1742482394411,0.38374705,86169.0,86168.0,0.0002944]
[1742482395031,0.15164505,86169.0,86168.0,0.0002944]
[1742482396507,0.39535205,86169.0,86168.0,0.0002944]
[1742482396743,1.10395205,86169.0,86168.0,0.0002944]
[1742482396949,1.11284809,86169.0,86168.0,0.0002944]
[1742482397501,1.13563797,86169.0,86168.0,0.0002944]
[1742482397715,1.13563797,86169.0,86150.0,0.04757841]
[1742482397716,0.243755,86152.0,86150.0,0.04757841]
[1742482397921,1.24926074,86151.0,86150.0,0.04768007]
[1742482398157,0.70550374,86151.0,86150.0,0.04768007]
[1742482398467,0.7237174,86151.0,86150.0,0.04768007]
[1742482398579,0.5871174,86151.0,86150.0,0.04768007]
[1742482398783,0.7237174,86151.0,86150.0,0.04768007]
[1742482400829,0.9674744,86151.0,86150.0,0.04768007]
[1742482401107,0.9558674,86151.0,86150.0,0.04768007]
[1742482401309,1.2674744,86151.0,86150.0,0.04768007]
[1742482401481,1.24926074,86151.0,86150.0,0.04768007]
[1742482402239,1.26380159,86151.0,86150.0,0.01005751]
[1742482402439,0.543789,86140.0,86139.0,0.0131293]
[1742482402633,0.56041697,86140.0,86139.0,0.0131293]
[1742482403042,0.96901697,86140.0,86139.0,0.0131293]
[1742482403249,0.98355782,86140.0,86139.0,0.0131293]
[1742482403478,0.99228923,86140.0,86139.0,0.0131293]
[1742482403694,0.543811,86132.0,86112.0,0.232325]
[1742482403892,1.1065487,86132.0,86112.0,7e-05]
[1742482404324,1.19888955,86132.0,86112.0,7e-05]
[1742482404527,1.21710866,86132.0,86112.0,7e-05]
[1742482404742,1.29400866,86132.0,86131.0,1e-06]
[1742482404946,0.543864,86113.0,86112.0,7e-05]
[1742482405117,1.25208253,86113.0,86112.0,7e-05]
[1742482405757,1.27030583,86113.0,86112.0,7e-05]
[1742482406181,1.28197902,86113.0,86112.0,7e-05]
[1742482406379,1.28210311,86113.0,86112.0,7e-05]
[1742482407073,1.29069138,86113.0,86112.0,7e-05]
[1742482407295,0.60163911,86113.0,86112.0,7e-05]
[1742482407503,0.74027911,86113.0,86112.0,7e-05]
[1742482408023,0.74890229,86113.0,86112.0,7e-05]
[1742482408230,0.75090229,86113.0,86112.0,7e-05]
[1742482408441,0.76051429,86113.0,86112.0,7e-05]
[1742482408640,0.74989111,86113.0,86112.0,7e-05]
[1742482409647,0.75859459,86113.0,86112.0,7e-05]
[1742482409846,0.75959459,86113.0,86112.0,7e-05]
[1742482410455,0.75859459,86113.0,86112.0,7e-05]
[1742482410860,0.60373129,86113.0,86112.0,7e-05]
[1742482411188,1.04037129,86113.0,86112.0,7e-05]
[1742482412355,1.27262329,86113.0,86112.0,7e-05]
[1742482412952,0.72005581,86113.0,86112.0,7e-05]
[1742482413155,0.58341581,86113.0,86112.0,7e-05]
[1742482413303,0.72005581,86113.0,86112.0,7e-05]
[1742482413507,0.69256409,86113.0,86112.0,0.232325]
[1742482413921,0.00312409,86113.0,86112.0,0.232325]
[1742482414123,0.13976409,86113.0,86112.0,0.232325]
[1742482414443,0.13876409,86113.0,86112.0,0.232325]
[1742482414881,0.13676409,86113.0,86112.0,0.232325]
[1742482415088,0.13676409,86113.0,86112.0,7e-05]
[1742482415328,0.13676409,86113.0,86112.0,0.232325]
[1742482416072,0.13676409,86113.0,86112.0,7e-05]
[1742482416888,0.13676409,86113.0,86112.0,0.232325]
[1742482417317,0.13676409,86113.0,86112.0,0.2324949]
[1742482417472,0.13676409,86113.0,86112.0,0.0002399]
[1742482417635,0.13676409,86113.0,86112.0,0.2324949]
[1742482418253,0.13676409,86113.0,86112.0,0.0002399]
[1742482418254,0.15558262,86113.0,86112.0,0.0002399]
[1742482418474,0.13676409,86113.0,86112.0,0.0002399]
[1742482418676,0.13676409,86113.0,86112.0,0.2324949]
[1742482419317,0.13676409,86113.0,86112.0,0.0002399]
[1742482419476,0.15558262,86113.0,86112.0,0.0002399]
[1742482421903,0.39944662,86113.0,86112.0,0.0002399]
[1742482422610,0.16719462,86113.0,86112.0,0.0002399]
[1742482422815,0.39944662,86113.0,86112.0,0.0002399]
[1742482424356,0.15558262,86113.0,86112.0,0.0002399]
[1742482426056,0.17380393,86113.0,86112.0,0.0002399]
[1742482426524,0.71766793,86113.0,86112.0,0.0002399]
[1742482427694,0.71866793,86113.0,86112.0,0.0002399]
[1742482428676,0.17580393,86113.0,86112.0,0.0002399]
[1742482429078,0.17480393,86113.0,86112.0,0.0002399]
[1742482429450,0.17680393,86113.0,86112.0,0.0002399]
[1742482429648,0.17380393,86113.0,86112.0,0.0002399]
[1742482430130,0.17580393,86113.0,86112.0,0.0002399]
[1742482430530,0.41766793,86113.0,86112.0,0.0002399]
[1742482430731,0.40605593,86113.0,86112.0,0.0002399]
[1742482431314,0.71766793,86113.0,86112.0,0.0002399]
[1742482431924,0.71966793,86113.0,86112.0,0.0002399]
[1742482432693,0.47780393,86113.0,86112.0,0.0002399]
[1742482432905,0.17780393,86113.0,86112.0,0.0002399]
[1742482433512,0.17780393,86113.0,86112.0,0.2324949]
[1742482433725,0.17580393,86113.0,86112.0,0.0002399]
[1742482434122,0.17380393,86113.0,86112.0,0.0002399]
[1742482434556,0.41762793,86113.0,86112.0,0.0002399]
[1742482434916,0.40601593,86113.0,86112.0,0.0002399]
[1742482435088,0.17376393,86113.0,86112.0,0.0002399]
[1742482435788,0.40601593,86113.0,86112.0,0.0002399]
[1742482436001,0.17376393,86113.0,86112.0,0.0002399]
[1742482436231,0.40601593,86113.0,86112.0,0.0002399]
[1742482436469,0.17376393,86113.0,86112.0,0.0002399]
[1742482437410,0.00012409,86113.0,86112.0,0.2324949]
[1742482437619,0.13672409,86113.0,86112.0,0.2324949]
[1742482438254,0.13672409,86113.0,86112.0,0.2441069]
[1742482438452,0.00012409,86113.0,86112.0,0.2441069]
[1742482439774,0.00012409,86113.0,86112.0,0.37549149]
[1742482439980,0.00012409,86113.0,86112.0,0.45699149]
[1742482440178,9e-08,86113.0,86112.0,0.80529149]
[1742482440379,0.0003398,86131.0,86130.0,0.243817]
[1742482440579,0.0003398,86131.0,86130.0,0.369117]
[1742482441104,0.0185549,86131.0,86130.0,0.369117]
[1742482441305,0.0185549,86131.0,86130.0,0.48869203]
[1742482441575,0.01837923,86131.0,86130.0,0.368117]
[1742482441881,0.01837923,86131.0,86130.0,0.367117]
[1742482442932,0.01837923,86131.0,86130.0,0.39007101]
[1742482443162,0.01937923,86131.0,86130.0,0.51064604]
[1742482443322,2.3e-07,86131.0,86130.0,0.51564604]
[1742482443521,2.3e-07,86131.0,86130.0,0.94508689]
[1742482443688,2.3e-07,86131.0,86130.0,0.94608689]
[1742482443887,0.0003396,86169.0,86130.0,0.94608689]
[1742482443888,0.0003396,86169.0,86164.0,0.232113]
[1742482444089,0.15177972,86168.0,86162.0,0.232119]
[1742482444349,0.16332658,86168.0,86162.0,0.232119]
[1742482444672,0.16332658,86168.0,86164.0,0.232113]
[1742482444809,0.16332658,86168.0,86165.0,0.23211]
[1742482445187,0.13656,86167.0,86166.0,0.232108]
[1742482445387,0.15173972,86167.0,86166.0,0.232108]
[1742482445585,0.15173972,86167.0,86165.0,0.23211]
[1742482447444,0.15173972,86167.0,86163.0,0.232118]
[1742482447736,0.01517972,86167.0,86164.0,0.232113]
[1742482447937,0.13652,86166.0,86164.0,0.232113]
[1742482448174,0.13652,86166.0,86165.0,0.001]
[1742482449752,0.13652,86166.0,86164.0,0.232113]
[1742482449975,0.15473096,86166.0,86164.0,0.232113]
[1742482450920,0.15473096,86166.0,86165.0,0.001]
[1742482451359,0.15473096,86166.0,86164.0,0.232113]
[1742482451974,0.15473096,86166.0,86161.0,0.232115]
[1742482452175,0.15473096,86166.0,86153.0,0.281844]
[1742482452176,0.15473096,86166.0,86164.0,0.232115]
[1742482452402,0.15473096,86166.0,86165.0,0.004]
[1742482452623,0.15473096,86166.0,86165.0,0.232112]
[1742482453163,0.01821096,86166.0,86165.0,0.232112]
[1742482453366,0.00012496,86168.0,86167.0,0.232107]
[1742482454766,0.00012496,86168.0,86167.0,0.235107]
[1742482455202,0.00012496,86168.0,86167.0,0.246712]
[1742482456181,0.01833371,86168.0,86167.0,0.249712]
[1742482456770,0.01833371,86168.0,86167.0,0.238107]
[1742482456958,0.01833371,86168.0,86167.0,0.249712]
[1742482457170,0.01833371,86168.0,86167.0,0.238107]
[1742482457347,0.01833371,86168.0,86167.0,0.006]
[1742482457548,0.01833371,86168.0,86167.0,0.238107]
[1742482458509,0.01833371,86168.0,86167.0,0.235107]
[1742482458710,0.01833371,86168.0,86167.0,0.246712]
[1742482458853,0.01833371,86168.0,86167.0,0.249712]
[1742482459643,0.01833371,86168.0,86167.0,0.246712]
[1742482459972,0.01833371,86168.0,86167.0,0.249712]
[1742482462919,0.01833371,86168.0,86167.0,0.235107]
[1742482463294,0.01833371,86168.0,86167.0,0.240107]
[1742482463501,0.01833371,86168.0,86167.0,0.237107]
[1742482463952,0.01833371,86168.0,86167.0,0.236107]
[1742482464159,0.01833371,86168.0,86167.0,0.239107]
[1742482464368,0.01833371,86168.0,86167.0,0.235107]
[1742482465227,0.01833371,86168.0,86167.0,0.238107]
[1742482467634,0.01833371,86168.0,86167.0,0.249712]
[1742482467841,0.01833371,86168.0,86167.0,0.49318703]
[1742482467842,0.00012496,86168.0,86167.0,0.49318703]
[1742482468463,0.00012496,86168.0,86167.0,0.79318703]
[1742482468871,0.00012496,86168.0,86167.0,0.79018703]
[1742482469345,0.00012496,86168.0,86167.0,0.79618703]
[1742482470642,0.00012496,86168.0,86167.0,0.79318703]
[1742482471246,0.00012496,86168.0,86167.0,0.79918703]
[1742482472706,0.00012496,86168.0,86167.0,0.679612]
[1742482472917,0.00012496,86168.0,86167.0,0.304212]
[1742482473493,0.00012496,86168.0,86167.0,0.244107]
[1742482473691,0.00012496,86168.0,86167.0,0.255712]
[1742482476160,0.01833171,86168.0,86167.0,0.255712]
[1742482476921,0.01833171,86168.0,86167.0,0.243712]
[1742482477058,0.01833171,86168.0,86167.0,0.247712]
[1742482477454,0.01833171,86168.0,86167.0,0.251712]
[1742482477620,0.01833171,86168.0,86167.0,0.243712]
[1742482478044,0.01833171,86168.0,86167.0,0.254712]
[1742482478291,0.01833171,86168.0,86167.0,0.243107]
[1742482479628,0.01833171,86168.0,86167.0,0.237107]
[1742482480005,0.01833171,86168.0,86167.0,0.242107]
[1742482480525,0.01833171,86168.0,86167.0,0.237107]
[1742482480929,0.01833171,86168.0,86167.0,0.236107]
[1742482481138,0.01833171,86168.0,86167.0,0.240107]
[1742482481559,0.01833171,86168.0,86167.0,0.251712]
[1742482481778,0.01867091,86168.0,86167.0,0.251712]
[1742482483173,0.01867091,86168.0,86167.0,0.240107]
[1742482485149,0.01867091,86168.0,86167.0,0.251712]
[1742482492805,9.1e-07,86168.0,86167.0,0.49448703]
[1742482493029,9.1e-07,86168.0,86167.0,0.50902788]
[1742482493635,9.1e-07,86168.0,86167.0,0.50502788]
[1742482494012,9.1e-07,86168.0,86167.0,0.51102788]
[1742482494363,9.1e-07,86168.0,86167.0,0.249712]
[1742482494744,9.1e-07,86168.0,86167.0,0.244107]
[1742482494901,9.1e-07,86168.0,86167.0,0.255712]
[1742482495259,9.1e-07,86168.0,86167.0,0.244107]
[1742482495914,9.1e-07,86168.0,86167.0,0.238107]
[1742482496119,9.1e-07,86168.0,86167.0,0.232107]
[1742482496301,9.1e-07,86168.0,86167.0,0.238107]
[1742482496798,9.1e-07,86168.0,86167.0,0.232107]
[1742482497049,9.1e-07,86168.0,86167.0,0.237107]
[1742482497333,9.1e-07,86168.0,86167.0,0.241107]
[1742482498169,9.1e-07,86168.0,86167.0,0.009]
[1742482498302,9.1e-07,86168.0,86167.0,0.004]
[1742482498503,0.011605,86166.0,86157.0,0.232133]
[1742482498688,0.09741647,86165.0,86157.0,0.232133]
[1742482498885,0.09741647,86165.0,86159.0,0.232126]
[1742482498886,0.10904855,86165.0,86159.0,0.232126]
[1742482499091,0.10904855,86165.0,86160.0,0.232125]
[1742482499367,0.10904855,86165.0,86161.0,0.232122]
[1742482499522,0.10904855,86165.0,86162.0,0.232119]
[1742482499934,0.10904855,86165.0,86137.0,0.00879301]
[1742482499935,0.011606,86157.0,86137.0,0.00879301]
[1742482500137,0.232137,86158.0,86149.0,0.232154]
[1742482500138,0.15285322,86156.0,86149.0,0.232154]
[1742482500472,0.15285322,86156.0,86153.0,0.232142]
[1742482500681,0.15285322,86156.0,86151.0,0.232148]
[1742482500806,0.15285322,86156.0,86144.0,0.243774]
[1742482501007,0.15285322,86156.0,86152.0,0.232145]
[1742482501367,0.16445922,86156.0,86132.0,0.02322119]
[1742482501517,0.16445922,86156.0,86135.0,0.011609]
[1742482501727,0.15285322,86156.0,86150.0,0.232152]
[1742482502177,0.15285322,86156.0,86151.0,0.232149]
[1742482502379,0.13636,86156.0,86155.0,0.232139]
[1742482502701,0.09353208,86165.0,86163.0,0.232118]
[1742482502922,9.1e-07,86168.0,86153.0,0.011607]
[1742482502923,9.1e-07,86168.0,86167.0,0.232107]